[Event "Queens Festival Europe 2022"]
[Site "Tornelo"]
[Date "2022.06.19"]
[Round "1.1"]
[White "Gueci, Tea"]
[Black "Machlik, Edit"]
[Result "1-0"]
[ECO "B12"]
[WhiteElo "2248"]
[BlackElo "2084"]
[Annotator "NA RC"]
[PlyCount "87"]
[EventDate "2022.06.19"]
[EventType "swiss"]
[EventCountry "NET"]
[SourceTitle "playchess.com"]
[Source "ChessBase"]
[SourceQuality "1"]
[TimeControl "180+2"]

1. e4 {[%emt 0:00:02]} c6 {[%emt 0:00:05]} 2. d4 {[%emt 0:00:04]} d5 {[%emt 0:00:02]} 3. e5 {[%emt 0:00:05]} Bf5 {[%emt 0:00:02]} 4. Nf3 {[%emt 0:00:03]} e6 {[%emt 0:00:18]} 5. Be2 {[%emt 0:00:02]} Nd7 {[%emt 0:00:40]} 6. O-O {[%emt 0:00:02]} Ne7 {[%emt 0:00:03]} 7. Nbd2 {[%emt 0:00:02]} Nc8 {[%emt 0:00:04]} 8. Nb3 {[%emt 0:00:02]} Be7 {[%emt 0:00:06]} 9. a4 {[%emt 0:00:03]} O-O {[%emt 0:00:06]} 10. a5 {[%emt 0:00:02]} a6 {[%emt 0:00:04]} 11. c4 {[%emt 0:00:07]} dxc4 {[%emt 0:00:32]} 12. Nbd2 {[%emt 0:00:04]} c5 {[%emt 0:00:08]} 13. Nxc4 {[%emt 0:00:04]} Qc7 {[%emt 0:00:02]} 14. Bf4 {[%emt 0:00:13]} Na7 {[%emt 0:00:05]} 15. Bg3 {[%emt 0:00:07]} Nc6 {[%emt 0:00:12]} 16. d5 {[%emt 0:00:18]} exd5 {[%emt 0:00:12]} 17. e6 {[%emt 0:00:01]} Qc8 {[%emt 0:00:05]} 18. exd7 {[%emt 0:00:05]} Qd8 {[%emt 0:00:12]} 19. Nb6 {[%emt 0:00:08]} d4 {[%emt 0:00:14]} 20. Nxa8 {[%emt 0:00:25]} Qxa8 {[%emt 0:00:02]} 21. Bd3 {[%emt 0:00:06]} Bxd7 {[%emt 0:00:03]} 22. Ne5 {[%emt 0:00:09]} Nxe5 {[%emt 0:00:05]} 23. Bxe5 {[%emt 0:00:00]} Qc8 {[%emt 0:00:12]} 24. Rc1 {[%emt 0:00:21]} Qd8 {[%emt 0:00:12]} 25. Qh5 {[%emt 0:00:10]} g6 {[%emt 0:00:02]} 26. Qh6 {[%emt 0:00:19]} f6 {[%emt 0:00:02]} 27. Bg3 {[%emt 0:00:05]} Be6 {[%emt 0:00:04]} 28. h4 {[%emt 0:00:19]} Bf7 {[%emt 0:00:01]} 29. h5 {[%emt 0:00:01]} Bd6 {[%emt 0:00:02]} 30. hxg6 {[%emt 0:00:03]} hxg6 {[%emt 0:00:02]} 31. Bxg6 {[%emt 0:00:03]} Bxg6 {[%emt 0:00:01]} 32. Qxg6+ {[%emt 0:00:00]} Kh8 {[%emt 0:00:02]} 33. Rfe1 {[%emt 0:00:05]} Bxg3 {[%emt 0:00:03]} 34. Qxg3 {[%emt 0:00:00]} Qd7 {[%emt 0:00:01]} 35. Re4 {[%emt 0:00:02]} Rf7 {[%emt 0:00:02]} 36. Rh4+ {[%emt 0:00:05]} Rh7 {[%emt 0:00:01]} 37. Rxc5 {[%emt 0:00:04]} Qe8 {[%emt 0:00:04]} 38. Rxh7+ {[%emt 0:00:05]} Kxh7 {[%emt 0:00:01]} 39. Qh4+ {[%emt 0:00:02]} Kg6 {[%emt 0:00:03]} 40. Qg4+ {[%emt 0:00:01]} Kh7 {[%emt 0:00:03]} 41. Rc7+ {[%emt 0:00:02]} Kh6 {[%emt 0:00:02]} 42. Qg7+ {[%emt 0:00:05]} Kh5 {[%emt 0:00:01]} 43. Rc5+ {[%emt 0:00:04]} Kh4 {[%emt 0:00:02]} 44. Qg3# {[%emt 0:00:01]} 1-0

[Event "Queens Festival Europe 2022"]
[Site "Tornelo"]
[Date "2022.06.19"]
[Round "1.1"]
[White "Cassi, Elisa"]
[Black "Mdivani, Maka"]
[Result "1-0"]
[ECO "B92"]
[WhiteElo "1999"]
[BlackElo "1901"]
[Annotator "NA RC"]
[PlyCount "69"]
[EventDate "2022.06.19"]
[EventType "swiss"]
[EventCountry "NET"]
[SourceTitle "playchess.com"]
[Source "ChessBase"]
[SourceQuality "1"]
[TimeControl "180+2"]

1. e4 {[%emt 0:00:06]} c5 {[%emt 0:02:09]} 2. Nf3 {[%emt 0:00:06]} Nc6 {[%emt 0:00:03]} 3. d4 {[%emt 0:00:02]} cxd4 {[%emt 0:00:03]} 4. Nxd4 {[%emt 0:00:01]} a6 {[%emt 0:00:09]} 5. Nc3 {[%emt 0:00:15]} Nf6 {[%emt 0:00:09]} 6. Be2 {[%emt 0:00:18]} d6 {[%emt 0:00:12]} 7. f3 {[%emt 0:00:16]} Qc7 {[%emt 0:00:01]} 8. Be3 {[%emt 0:00:03]} Bd7 {[%emt 0:00:02]} 9. Qd2 {[%emt 0:00:02]} b5 {[%emt 0:00:02]} 10. O-O {[%emt 0:00:11]} e6 {[%emt 0:00:02]} 11. f4 {[%emt 0:00:14]} Be7 {[%emt 0:00:02]} 12. Bf3 {[%emt 0:00:02]} b4 {[%emt 0:00:03]} 13. Nce2 {[%emt 0:00:03]} Rc8 {[%emt 0:00:02]} 14. c3 {[%emt 0:00:06]} a5 {[%emt 0:00:03]} 15. Rac1 {[%emt 0:00:05]} bxc3 {[%emt 0:00:07]} 16. Rxc3 {[%emt 0:00:03]} O-O {[%emt 0:00:03]} 17. Rfc1 {[%emt 0:00:02]} Qb7 {[%emt 0:00:06]} 18. e5 {[%emt 0:00:04]} Nd5 {[%emt 0:00:02]} 19. Nxc6 {[%emt 0:00:27]} Bxc6 {[%emt 0:00:05]} 20. Rb3 {[%emt 0:00:03]} Qa8 {[%emt 0:00:04]} 21. Nd4 {[%emt 0:00:14]} Bb7 {[%emt 0:00:05]} 22. Nb5 {[%emt 0:00:14]} dxe5 {[%emt 0:00:02]} 23. fxe5 {[%emt 0:00:02]} Rfd8 {[%emt 0:00:02]} 24. Rd3 {[%emt 0:00:14]} Rxc1+ {[%emt 0:00:04]} 25. Qxc1 {[%emt 0:00:03]} g6 {[%emt 0:00:02]} 26. Bc5 {[%emt 0:00:16]} Bxc5+ {[%emt 0:00:04]} 27. Qxc5 {[%emt 0:00:02]} Rc8 {[%emt 0:00:01]} 28. Qd4 {[%emt 0:00:12]} Qa6 {[%emt 0:00:02]} 29. Nd6 {[%emt 0:00:03]} Rc1+ {[%emt 0:00:04]} 30. Rd1 {[%emt 0:00:02]} Qc6 {[%emt 0:00:01]} 31. h3 {[%emt 0:00:03]} Ba8 {[%emt 0:00:03]} 32. Kh2 {[%emt 0:00:02]} Rxd1 {[%emt 0:00:03]} 33. Qxd1 {[%emt 0:00:02]} Qb6 {[%emt 0:00:03]} 34. Qd2 {[%emt 0:00:03]} Bc6 {[%emt 0:00:02]} 35. Ne4 {[%emt 0:00:03]} 1-0

[Event "Queens Festival Europe 2022"]
[Site "Tornelo"]
[Date "2022.06.19"]
[Round "1.1"]
[White "Bayona, Karin Silvana"]
[Black "Stadlinger, Lea"]
[Result "0-1"]
[ECO "C22"]
[WhiteElo "1793"]
[BlackElo "1723"]
[Annotator "NA RC"]
[PlyCount "78"]
[EventDate "2022.06.19"]
[EventType "swiss"]
[EventCountry "NET"]
[SourceTitle "playchess.com"]
[Source "ChessBase"]
[SourceQuality "1"]
[TimeControl "180+2"]

1. e4 {[%emt 0:00:02]} e5 {[%emt 0:00:05]} 2. d4 {[%emt 0:00:04]} exd4 {[%emt 0:00:02]} 3. Qxd4 {[%emt 0:00:02]} Nc6 {[%emt 0:00:04]} 4. Qe3 {[%emt 0:00:02]} Nf6 {[%emt 0:00:05]} 5. Nc3 {[%emt 0:00:02]} Bb4 {[%emt 0:00:05]} 6. Bd2 {[%emt 0:00:01]} d6 {[%emt 0:00:03]} 7. O-O-O {[%emt 0:00:11]} Be6 {[%emt 0:00:03]} 8. Be2 {[%emt 0:00:04]} O-O {[%emt 0:00:06]} 9. f4 {[%emt 0:00:08]} d5 {[%emt 0:00:18]} 10. exd5 {[%emt 0:00:29]} Nxd5 {[%emt 0:00:11]} 11. Nxd5 {[%emt 0:00:09]} Bxd5 {[%emt 0:00:08]} 12. Bc3 {[%emt 0:00:30]} Bxc3 {[%emt 0:00:10]} 13. Qxc3 {[%emt 0:00:02]} Ne7 {[%emt 0:00:11]} 14. Kb1 {[%emt 0:00:05]} c6 {[%emt 0:00:51]} 15. Nf3 {[%emt 0:00:03]} Qc7 {[%emt 0:00:10]} 16. Rhg1 {[%emt 0:00:11]} Qxf4 {[%emt 0:00:14]} 17. Rdf1 {[%emt 0:00:17]} Qh6 {[%emt 0:00:14]} 18. h3 {[%emt 0:00:17]} Rad8 {[%emt 0:00:01]} 19. Bd3 {[%emt 0:00:05]} Bxf3 {[%emt 0:00:03]} 20. gxf3 {[%emt 0:00:08]} Nd5 {[%emt 0:00:02]} 21. Qe5 {[%emt 0:00:12]} Rfe8 {[%emt 0:00:04]} 22. Qg3 {[%emt 0:00:04]} Nf4 {[%emt 0:00:11]} 23. Bc4 {[%emt 0:00:10]} Ne2 {[%emt 0:00:06]} 24. Bxe2 {[%emt 0:00:03]} Rxe2 {[%emt 0:00:03]} 25. a3 {[%emt 0:00:09]} g6 {[%emt 0:00:03]} 26. Rg2 {[%emt 0:00:13]} Rdd2 {[%emt 0:00:02]} 27. Rxe2 {[%emt 0:00:02]} Rxe2 {[%emt 0:00:03]} 28. f4 {[%emt 0:00:01]} Qh5 {[%emt 0:00:04]} 29. Qd3 {[%emt 0:00:03]} Rh2 {[%emt 0:00:05]} 30. Qd8+ {[%emt 0:00:02]} Kg7 {[%emt 0:00:01]} 31. Qd4+ {[%emt 0:00:02]} Kh6 {[%emt 0:00:03]} 32. Qe3 {[%emt 0:00:03]} Qxh3 {[%emt 0:00:04]} 33. f5+ {[%emt 0:00:02]} Qxe3 {[%emt 0:00:03]} 34. fxg6 {[%emt 0:00:06]} fxg6 {[%emt 0:00:01]} 35. Rc1 {[%emt 0:00:03]} Qxc1+ {[%emt 0:00:02]} 36. Kxc1 {[%emt 0:00:02]} g5 {[%emt 0:00:00]} 37. Kb1 {[%emt 0:00:02]} g4 {[%emt 0:00:00]} 38. Ka2 {[%emt 0:00:01]} g3 {[%emt 0:00:01]} 39. Kb3 {[%emt 0:00:01]} g2 {[%emt 0:00:00]} 0-1

[Event "Queens Festival Europe 2022"]
[Site "Tornelo"]
[Date "2022.06.19"]
[Round "1.1"]
[White "McCormick, Polly"]
[Black "Ismayilova, Khanim"]
[Result "0-1"]
[ECO "D00"]
[WhiteElo "1222"]
[BlackElo "1647"]
[Annotator "NA RC"]
[PlyCount "38"]
[EventDate "2022.06.19"]
[EventType "swiss"]
[EventCountry "NET"]
[SourceTitle "playchess.com"]
[Source "ChessBase"]
[SourceQuality "1"]
[TimeControl "180+2"]

1. d4 {[%emt 0:00:02]} d5 {[%emt 0:00:05]} 2. Bf4 {[%emt 0:00:06]} Nf6 {[%emt 0:00:02]} 3. e3 {[%emt 0:00:07]} e6 {[%emt 0:00:02]} 4. c3 {[%emt 0:00:03]} Bd6 {[%emt 0:00:03]} 5. Bg3 {[%emt 0:00:05]} O-O {[%emt 0:00:02]} 6. Nf3 {[%emt 0:00:02]} c5 {[%emt 0:00:02]} 7. Bd3 {[%emt 0:00:07]} b6 {[%emt 0:00:02]} 8. Ne5 {[%emt 0:00:07]} Ba6 {[%emt 0:00:03]} 9. Bc2 {[%emt 0:00:10]} Qc7 {[%emt 0:00:02]} 10. Nd2 {[%emt 0:00:10]} Nc6 {[%emt 0:00:02]} 11. Ndf3 {[%emt 0:00:03]} Rac8 {[%emt 0:00:05]} 12. Nxc6 {[%emt 0:00:05]} Qxc6 {[%emt 0:00:01]} 13. Bxd6 {[%emt 0:00:11]} Qxd6 {[%emt 0:00:02]} 14. Ne5 {[%emt 0:00:01]} cxd4 {[%emt 0:00:11]} 15. cxd4 {[%emt 0:00:04]} Qb4+ {[%emt 0:00:14]} 16. Qd2 {[%emt 0:00:11]} Qxb2 {[%emt 0:00:02]} 17. Rc1 {[%emt 0:00:07]} Ne4 {[%emt 0:00:12]} 18. Bxe4 {[%emt 0:00:13]} Rxc1+ {[%emt 0:00:03]} 19. Qxc1 {[%emt 0:00:12]} Qxc1# {[%emt 0:00:02]} 0-1

[Event "Queens Festival Europe 2022"]
[Site "Tornelo"]
[Date "2022.06.19"]
[Round "1.2"]
[White "Mammadova, Aysel"]
[Black "Grimaldi, Angela Flavia"]
[Result "1-0"]
[ECO "B06"]
[WhiteElo "1893"]
[BlackElo "1995"]
[Annotator "NA RC"]
[PlyCount "37"]
[EventDate "2022.06.19"]
[EventType "swiss"]
[EventCountry "NET"]
[SourceTitle "playchess.com"]
[Source "ChessBase"]
[SourceQuality "1"]
[TimeControl "180+2"]

1. e4 {[%emt 0:00:02]} c5 {[%emt 0:00:06]} 2. c3 {[%emt 0:00:03]} d5 {[%emt 0:00:03]} 3. exd5 {[%emt 0:00:03]} Qxd5 {[%emt 0:00:04]} 4. d4 {[%emt 0:00:02]} g6 {[%emt 0:00:06]} 5. Nf3 {[%emt 0:00:04]} Bg7 {[%emt 0:00:06]} 6. Be2 {[%emt 0:00:02]} Nf6 {[%emt 0:00:12]} 7. O-O {[%emt 0:00:02]} cxd4 {[%emt 0:00:15]} 8. Nxd4 {[%emt 0:00:03]} O-O {[%emt 0:00:06]} 9. Bf3 {[%emt 0:00:02]} Qd6 {[%emt 0:00:27]} 10. Qb3 {[%emt 0:00:09]} Nc6 {[%emt 0:00:35]} 11. Rd1 {[%emt 0:00:08]} Nxd4 {[%emt 0:00:12]} 12. Rxd4 {[%emt 0:00:03]} Qc7 {[%emt 0:00:31]} 13. Be3 {[%emt 0:00:05]} Be6 {[%emt 0:00:28]} 14. Qa4 {[%emt 0:00:17]} Nd7 {[%emt 0:00:11]} 15. Rd1 {[%emt 0:00:05]} Rfd8 {[%emt 0:00:04]} 16. Na3 {[%emt 0:00:07]} Ne5 {[%emt 0:00:04]} 17. Be2 {[%emt 0:00:12]} b6 {[%emt 0:00:03]} 18. Nb5 {[%emt 0:00:12]} Qc6 {[%emt 0:00:02]} 19. Qh4 {[%emt 0:00:21]} 1-0

[Event "Queens Festival Europe 2022"]
[Site "Tornelo"]
[Date "2022.06.19"]
[Round "1.2"]
[White "Caku, Kler"]
[Black "Farzaliyeva, Shams"]
[Result "0-1"]
[ECO "B08"]
[WhiteElo "1542"]
[BlackElo "1219"]
[Annotator "NA RC"]
[PlyCount "134"]
[EventDate "2022.06.19"]
[EventType "swiss"]
[EventCountry "NET"]
[SourceTitle "playchess.com"]
[Source "ChessBase"]
[SourceQuality "1"]
[TimeControl "180+2"]

1. e4 {[%emt 0:00:02]} g6 {[%emt 0:00:05]} 2. d4 {[%emt 0:00:02]} Bg7 {[%emt 0:00:02]} 3. Nf3 {[%emt 0:00:01]} d6 {[%emt 0:00:01]} 4. Nc3 {[%emt 0:00:01]} Nc6 {[%emt 0:00:02]} 5. Be2 {[%emt 0:00:02]} Bg4 {[%emt 0:00:05]} 6. Be3 {[%emt 0:00:02]} Nf6 {[%emt 0:00:06]} 7. h3 {[%emt 0:00:02]} Bxf3 {[%emt 0:00:02]} 8. Bxf3 {[%emt 0:00:00]} O-O {[%emt 0:00:04]} 9. O-O {[%emt 0:00:02]} e5 {[%emt 0:00:07]} 10. d5 {[%emt 0:00:12]} Ne7 {[%emt 0:00:03]} 11. Qd2 {[%emt 0:00:02]} Ne8 {[%emt 0:00:11]} 12. Bh6 {[%emt 0:00:02]} f5 {[%emt 0:00:02]} 13. Bxg7 {[%emt 0:00:02]} Kxg7 {[%emt 0:00:01]} 14. Rad1 {[%emt 0:00:15]} Nf6 {[%emt 0:00:05]} 15. Rfe1 {[%emt 0:00:10]} Qd7 {[%emt 0:00:03]} 16. exf5 {[%emt 0:00:04]} Nxf5 {[%emt 0:00:03]} 17. Ne4 {[%emt 0:00:07]} Nd4 {[%emt 0:00:08]} 18. Qd3 {[%emt 0:00:50]} Nxd5 {[%emt 0:00:14]} 19. Bg4 {[%emt 0:00:01]} Qe7 {[%emt 0:00:11]} 20. c3 {[%emt 0:00:04]} Nf4 {[%emt 0:00:05]} 21. Qd2 {[%emt 0:00:07]} Nf5 {[%emt 0:00:04]} 22. Ng3 {[%emt 0:00:06]} Nxg3 {[%emt 0:00:16]} 23. fxg3 {[%emt 0:00:00]} Ne6 {[%emt 0:00:04]} 24. Rf1 {[%emt 0:00:05]} Nc5 {[%emt 0:00:10]} 25. Qe3 {[%emt 0:00:13]} Rae8 {[%emt 0:00:06]} 26. b4 {[%emt 0:00:16]} Na4 {[%emt 0:00:03]} 27. c4 {[%emt 0:00:04]} a6 {[%emt 0:00:09]} 28. Qb3 {[%emt 0:00:05]} Nb6 {[%emt 0:00:08]} 29. Qd3 {[%emt 0:00:03]} Rd8 {[%emt 0:00:04]} 30. Qe4 {[%emt 0:00:06]} c6 {[%emt 0:00:04]} 31. Be2 {[%emt 0:00:05]} d5 {[%emt 0:00:03]} 32. cxd5 {[%emt 0:00:04]} cxd5 {[%emt 0:00:01]} 33. Qg4 {[%emt 0:00:10]} e4 {[%emt 0:00:13]} 34. Rd4 {[%emt 0:00:10]} Rxf1+ {[%emt 0:00:08]} 35. Bxf1 {[%emt 0:00:02]} Qe5 {[%emt 0:00:03]} 36. Rd1 {[%emt 0:00:06]} d4 {[%emt 0:00:04]} 37. Qe2 {[%emt 0:00:06]} d3 {[%emt 0:00:03]} 38. Qe3 {[%emt 0:00:05]} Nc4 {[%emt 0:00:04]} 39. Qc5 {[%emt 0:00:12]} Qxc5+ {[%emt 0:00:07]} 40. bxc5 {[%emt 0:00:00]} Rc8 {[%emt 0:00:05]} 41. Re1 {[%emt 0:00:07]} Nd2 {[%emt 0:00:14]} 42. Kf2 {[%emt 0:00:06]} Rxc5 {[%emt 0:00:09]} 43. Ke3 {[%emt 0:00:03]} Nxf1+ {[%emt 0:00:03]} 44. Rxf1 {[%emt 0:00:01]} Rc2 {[%emt 0:00:01]} 45. Kxe4 {[%emt 0:00:01]} d2 {[%emt 0:00:02]} 46. Rd1 {[%emt 0:00:03]} Rxa2 {[%emt 0:00:03]} 47. Ke3 {[%emt 0:00:01]} b5 {[%emt 0:00:04]} 48. Kd3 {[%emt 0:00:02]} a5 {[%emt 0:00:05]} 49. Kc3 {[%emt 0:00:02]} Ra3+ {[%emt 0:00:03]} 50. Kxd2 {[%emt 0:00:03]} Rxg3 {[%emt 0:00:02]} 51. Rg1 {[%emt 0:00:02]} Kf6 {[%emt 0:00:03]} 52. Kc2 {[%emt 0:00:01]} Ke5 {[%emt 0:00:03]} 53. Re1+ {[%emt 0:00:02]} Kf4 {[%emt 0:00:04]} 54. Re2 {[%emt 0:00:02]} a4 {[%emt 0:00:04]} 55. Kb2 {[%emt 0:00:01]} b4 {[%emt 0:00:01]} 56. Ka2 {[%emt 0:00:02]} Re3 {[%emt 0:00:02]} 57. Rf2+ {[%emt 0:00:02]} Ke4 {[%emt 0:00:04]} 58. Kb2 {[%emt 0:00:01]} Kd3 {[%emt 0:00:01]} 59. Kb1 {[%emt 0:00:04]} Re2 {[%emt 0:00:02]} 60. Rf3+ {[%emt 0:00:01]} Re3 {[%emt 0:00:01]} 61. Rf2 {[%emt 0:00:02]} a3 {[%emt 0:00:02]} 62. Ka1 {[%emt 0:00:06]} b3 {[%emt 0:00:01]} 63. Rf1 {[%emt 0:00:02]} Kd2 {[%emt 0:00:03]} 64. Rb1 {[%emt 0:00:03]} Re1 {[%emt 0:00:02]} 65. Rxe1 {[%emt 0:00:02]} Kxe1 {[%emt 0:00:01]} 66. Kb1 {[%emt 0:00:01]} Kf2 {[%emt 0:00:02]} 67. g3 {[%emt 0:00:01]} Kxg3 {[%emt 0:00:01]} 0-1

[Event "Queens Festival Europe 2022"]
[Site "Tornelo"]
[Date "2022.06.19"]
[Round "1.3"]
[White "Ibrahimova, Sabina"]
[Black "Steffensen, Elena"]
[Result "1-0"]
[ECO "B06"]
[WhiteElo "2146"]
[BlackElo "2044"]
[Annotator "NA RC"]
[PlyCount "105"]
[EventDate "2022.06.19"]
[EventType "swiss"]
[EventCountry "NET"]
[SourceTitle "playchess.com"]
[Source "ChessBase"]
[SourceQuality "1"]
[TimeControl "180+2"]

1. e4 {[%emt 0:00:02]} g6 {[%emt 0:00:06]} 2. d4 {[%emt 0:00:02]} Bg7 {[%emt 0:00:03]} 3. Nc3 {[%emt 0:00:02]} d5 {[%emt 0:00:03]} 4. Nxd5 {[%emt 0:00:49]} c6 {[%emt 0:00:08]} 5. Nc3 {[%emt 0:00:02]} Qxd4 {[%emt 0:00:10]} 6. Bd3 {[%emt 0:00:16]} Nf6 {[%emt 0:00:06]} 7. Nge2 {[%emt 0:00:04]} Qd8 {[%emt 0:00:03]} 8. O-O {[%emt 0:00:02]} O-O {[%emt 0:00:02]} 9. h3 {[%emt 0:00:03]} Nbd7 {[%emt 0:00:04]} 10. Be3 {[%emt 0:00:06]} Ne5 {[%emt 0:00:03]} 11. f4 {[%emt 0:00:04]} Nxd3 {[%emt 0:00:16]} 12. cxd3 {[%emt 0:00:03]} e5 {[%emt 0:00:06]} 13. fxe5 {[%emt 0:00:12]} Nd7 {[%emt 0:00:07]} 14. d4 {[%emt 0:00:01]} c5 {[%emt 0:00:03]} 15. d5 {[%emt 0:00:17]} Nxe5 {[%emt 0:00:03]} 16. Bxc5 {[%emt 0:00:02]} Re8 {[%emt 0:00:02]} 17. Bf2 {[%emt 0:00:06]} f5 {[%emt 0:00:12]} 18. exf5 {[%emt 0:00:21]} Bxf5 {[%emt 0:00:02]} 19. Nd4 {[%emt 0:00:02]} Bd3 {[%emt 0:00:51]} 20. Re1 {[%emt 0:00:03]} Ba6 {[%emt 0:00:02]} 21. Ne6 {[%emt 0:00:17]} Qd6 {[%emt 0:00:10]} 22. Bg3 {[%emt 0:00:08]} Qb6+ {[%emt 0:00:10]} 23. Kh1 {[%emt 0:00:18]} Nd3 {[%emt 0:00:08]} 24. Rf1 {[%emt 0:00:14]} Nxb2 {[%emt 0:00:04]} 25. Qf3 {[%emt 0:00:01]} Bxf1 {[%emt 0:00:07]} 26. Rxf1 {[%emt 0:00:03]} Qd4 {[%emt 0:00:10]} 27. Nxd4 {[%emt 0:00:04]} Bxd4 {[%emt 0:00:03]} 28. Nb5 {[%emt 0:00:02]} Bg7 {[%emt 0:00:03]} 29. Nc7 {[%emt 0:00:04]} Rf8 {[%emt 0:00:03]} 30. Nxa8 {[%emt 0:00:01]} Rxf3 {[%emt 0:00:02]} 31. Rxf3 {[%emt 0:00:02]} Nc4 {[%emt 0:00:02]} 32. Nc7 {[%emt 0:00:02]} Nb6 {[%emt 0:00:02]} 33. d6 {[%emt 0:00:02]} Bd4 {[%emt 0:00:04]} 34. Ne6 {[%emt 0:00:02]} h5 {[%emt 0:00:05]} 35. Rf8+ {[%emt 0:00:04]} Kh7 {[%emt 0:00:01]} 36. d7 {[%emt 0:00:02]} Nxd7 {[%emt 0:00:02]} 37. Rf7+ {[%emt 0:00:01]} Kh6 {[%emt 0:00:03]} 38. Rxd7 {[%emt 0:00:02]} Be3 {[%emt 0:00:03]} 39. Bf4+ {[%emt 0:00:03]} Bxf4 {[%emt 0:00:02]} 40. Nxf4 {[%emt 0:00:01]} Kg5 {[%emt 0:00:02]} 41. g3 {[%emt 0:00:02]} b5 {[%emt 0:00:01]} 42. Kg2 {[%emt 0:00:01]} a5 {[%emt 0:00:03]} 43. Rd5+ {[%emt 0:00:02]} Kf6 {[%emt 0:00:02]} 44. Rxb5 {[%emt 0:00:01]} g5 {[%emt 0:00:04]} 45. Nxh5+ {[%emt 0:00:03]} Kg6 {[%emt 0:00:01]} 46. g4 {[%emt 0:00:01]} Kh6 {[%emt 0:00:02]} 47. Rb6+ {[%emt 0:00:03]} Kh7 {[%emt 0:00:02]} 48. Kf3 {[%emt 0:00:01]} a4 {[%emt 0:00:02]} 49. Ke4 {[%emt 0:00:02]} a3 {[%emt 0:00:04]} 50. Kf5 {[%emt 0:00:01]} Kg8 {[%emt 0:00:02]} 51. Kf6 {[%emt 0:00:02]} Kh8 {[%emt 0:00:02]} 52. Kg6 {[%emt 0:00:02]} Kg8 {[%emt 0:00:02]} 53. Rb8# {[%emt 0:00:01]} 1-0

[Event "Queens Festival Europe 2022"]
[Site "Tornelo"]
[Date "2022.06.19"]
[Round "1.3"]
[White "Grigoryan, Meri"]
[Black "Roy, Ali"]
[Result "1-0"]
[ECO "D13"]
[WhiteElo "1993"]
[BlackElo "1893"]
[Annotator "NA RC"]
[PlyCount "57"]
[EventDate "2022.06.19"]
[EventType "swiss"]
[EventCountry "NET"]
[SourceTitle "playchess.com"]
[Source "ChessBase"]
[SourceQuality "1"]
[TimeControl "180+2"]

1. d4 {[%emt 0:00:02]} d5 {[%emt 0:00:05]} 2. c4 {[%emt 0:00:05]} c6 {[%emt 0:00:04]} 3. cxd5 {[%emt 0:00:02]} cxd5 {[%emt 0:00:02]} 4. Nc3 {[%emt 0:00:01]} Nf6 {[%emt 0:00:02]} 5. Nf3 {[%emt 0:00:02]} e6 {[%emt 0:00:02]} 6. Bf4 {[%emt 0:00:01]} Bd6 {[%emt 0:00:07]} 7. Bg5 {[%emt 0:00:31]} Be7 {[%emt 0:00:04]} 8. e3 {[%emt 0:00:02]} O-O {[%emt 0:00:02]} 9. Bd3 {[%emt 0:00:02]} Nc6 {[%emt 0:00:03]} 10. Rc1 {[%emt 0:00:02]} Nb4 {[%emt 0:00:21]} 11. Bb1 {[%emt 0:00:02]} b6 {[%emt 0:00:03]} 12. a3 {[%emt 0:00:02]} Nc6 {[%emt 0:00:06]} 13. Qd3 {[%emt 0:00:18]} Ne4 {[%emt 0:00:34]} 14. Nxe4 {[%emt 0:00:07]} dxe4 {[%emt 0:00:07]} 15. Qxe4 {[%emt 0:00:02]} f5 {[%emt 0:00:23]} 16. Qxc6 {[%emt 0:00:06]} Bd7 {[%emt 0:00:06]} 17. Bxe7 {[%emt 0:00:04]} Qxe7 {[%emt 0:00:05]} 18. Qc2 {[%emt 0:00:03]} Rac8 {[%emt 0:00:03]} 19. Qd2 {[%emt 0:00:01]} Bb5 {[%emt 0:00:10]} 20. Ne5 {[%emt 0:00:18]} Qg5 {[%emt 0:00:21]} 21. Rxc8 {[%emt 0:00:25]} Rxc8 {[%emt 0:00:03]} 22. f4 {[%emt 0:00:12]} Qh4+ {[%emt 0:00:11]} 23. g3 {[%emt 0:00:11]} Qe7 {[%emt 0:00:06]} 24. Bd3 {[%emt 0:00:03]} Qb7 {[%emt 0:00:10]} 25. O-O {[%emt 0:00:30]} Ba4 {[%emt 0:00:16]} 26. Rc1 {[%emt 0:00:06]} Rxc1+ {[%emt 0:00:09]} 27. Qxc1 {[%emt 0:00:01]} Bb3 {[%emt 0:00:05]} 28. Bf1 {[%emt 0:00:05]} Bd5 {[%emt 0:00:03]} 29. Qd2 {[%emt 0:00:02]} 1-0

[Event "Queens Festival Europe 2022"]
[Site "Tornelo"]
[Date "2022.06.19"]
[Round "1.3"]
[White "Khalilova, Khadija"]
[Black "Egger, Stefanie"]
[Result "1-0"]
[ECO "C78"]
[WhiteElo "1777"]
[BlackElo "1700"]
[Annotator "NA RC"]
[PlyCount "39"]
[EventDate "2022.06.19"]
[EventType "swiss"]
[EventCountry "NET"]
[SourceTitle "playchess.com"]
[Source "ChessBase"]
[SourceQuality "1"]
[TimeControl "180+2"]

1. e4 {[%emt 0:00:02]} e5 {[%emt 0:00:06]} 2. Nf3 {[%emt 0:00:02]} Nc6 {[%emt 0:00:02]} 3. Bb5 {[%emt 0:00:02]} a6 {[%emt 0:00:03]} 4. Ba4 {[%emt 0:00:03]} Nf6 {[%emt 0:00:11]} 5. d3 {[%emt 0:00:02]} Bc5 {[%emt 0:00:05]} 6. O-O {[%emt 0:00:03]} b5 {[%emt 0:00:02]} 7. Bb3 {[%emt 0:00:03]} O-O {[%emt 0:00:01]} 8. c3 {[%emt 0:00:02]} Ba7 {[%emt 0:00:08]} 9. h3 {[%emt 0:00:06]} d6 {[%emt 0:00:14]} 10. Bg5 {[%emt 0:00:03]} h6 {[%emt 0:00:06]} 11. Bh4 {[%emt 0:00:02]} Be6 {[%emt 0:00:09]} 12. Bc2 {[%emt 0:00:04]} b4 {[%emt 0:00:25]} 13. d4 {[%emt 0:00:04]} Bc4 {[%emt 0:00:29]} 14. Re1 {[%emt 0:00:06]} Qe7 {[%emt 0:00:19]} 15. b3 {[%emt 0:00:03]} Bxb3 {[%emt 0:00:53]} 16. axb3 {[%emt 0:00:03]} bxc3 {[%emt 0:00:01]} 17. Nxc3 {[%emt 0:00:04]} exd4 {[%emt 0:00:04]} 18. Nd5 {[%emt 0:00:02]} Qd7 {[%emt 0:00:16]} 19. Bxf6 {[%emt 0:00:04]} gxf6 {[%emt 0:00:02]} 20. Nxf6+ {[%emt 0:00:02]} 1-0